fUSD/lending_fUSD_20240222
["ID","MTS","AMOUNT","RATE_DAILY","PERIOD"]
[314810904,1708561856165,-500.0,0.00038356,2]
[314810905,1708561856174,-836.09,0.00038356,2]
[314810906,1708561856184,-500.0,0.00038356,2]
[314810907,1708561856193,-500.0,0.00038356,2]
[314810908,1708561856203,-500.0,0.00038356,2]
[314810909,1708561856212,-500.0,0.00038356,2]
[314810910,1708561856223,-500.0,0.00038356,2]
[314810911,1708561856232,-500.0,0.00038356,2]
[314810912,1708561856242,-500.0,0.00038356,2]
[314810913,1708561856252,-500.0,0.00038356,2]
[314810914,1708561856261,-500.0,0.00038356,2]
[314810915,1708561856271,-500.0,0.00038356,2]
[314810916,1708561856281,-646.95,0.00038356,2]
[314810917,1708561856290,-936.01,0.00038356,2]
[314810918,1708561856300,-1167.87,0.00038356,2]
[314810919,1708561856309,-500.0,0.00038356,2]
[314810920,1708561856318,-515.78,0.00038356,2]
[314810921,1708561856327,-500.0,0.00038356,2]
[314810922,1708561856337,-1680.29,0.00038356,2]
[314810923,1708561856347,-505.89250574,0.00038356,2]
[314810924,1708561856356,-500.0,0.00038356,2]
[314810925,1708561856365,-500.0,0.00038356,2]
[314810926,1708561856375,-500.0,0.00038356,2]
[314810927,1708561856384,-505.2798475,0.00038356,2]
[314810928,1708561856393,-500.0,0.00038356,2]
[314810929,1708561856403,-500.0,0.00038356,2]
[314810930,1708561856412,-500.0,0.00038356,2]
[314810931,1708561856421,-500.0,0.00038356,2]
[314810932,1708561856430,-500.0,0.00038356,2]
[314810933,1708561856439,-1445.49,0.00038356,2]
[314810934,1708561856448,-500.0,0.00038356,2]
[314810935,1708561856459,-500.0,0.00038356,2]
[314810936,1708561856469,-1233.6,0.00038356,2]
[314810937,1708561856478,-517.9414612,0.00038356,2]
[314810938,1708561856487,-500.0,0.00038356,2]
[314810939,1708561856496,-500.0,0.00038356,2]
[314810940,1708561856506,-500.0,0.00038356,2]
[314810941,1708561856515,-500.0,0.00038356,2]
[314810942,1708561856524,-500.0,0.00038356,2]
[314810943,1708561856534,-500.0,0.00038356,2]
[314810944,1708561856543,-7935.32,0.00038356,2]
[314810945,1708561856552,-500.0,0.00038356,2]
[314810946,1708561856562,-500.0,0.00038356,2]
[314810947,1708561856571,-500.0,0.00038356,2]
[314810948,1708561856580,-500.0,0.00038356,2]
[314810949,1708561856590,-500.0,0.00038356,2]
[314810950,1708561856599,-500.0,0.00038356,2]
[314810951,1708561856610,-500.0,0.00038356,2]
[314810952,1708561856620,-500.0,0.00038356,2]
[314810953,1708561856630,-500.0,0.00038356,2]
[314810954,1708561856642,-716.61,0.00038356,2]
[314810955,1708561856651,-500.0,0.00038356,2]
[314810956,1708561856660,-500.0,0.00038356,2]
[314810957,1708561856671,-500.0,0.00038356,2]
[314810958,1708561856681,-1306.47,0.00038356,2]
[314810959,1708561856694,-988.45,0.00038356,2]
[314810960,1708561856704,-500.0,0.00038356,2]
[314810961,1708561856713,-500.0,0.00038356,2]
[314810962,1708561856723,-500.0,0.00038356,2]
[314810963,1708561856733,-500.0,0.00038356,2]
[314810964,1708561856742,-500.0,0.00038356,2]
[314810965,1708561856751,-500.0,0.00038356,2]
[314810966,1708561856761,-3334.91,0.00038356,2]
[314810967,1708561856769,-500.0,0.00038356,2]
[314810968,1708561856780,-500.0,0.00038356,2]
[314810969,1708561856790,-500.0,0.00038356,2]
[314810970,1708561856799,-500.0,0.00038356,2]
[314810971,1708561856808,-500.0,0.00038356,2]
[314810972,1708561856818,-500.0,0.00038356,2]
[314810973,1708561856828,-500.0,0.00038356,2]
[314810974,1708561856837,-1629.87,0.00038356,2]
[314810975,1708561856846,-751.27,0.00038356,2]
[314810976,1708561856857,-500.0,0.00038356,2]
[314810977,1708561856865,-500.0,0.00038356,2]
[314810978,1708561856874,-613.46,0.00038356,2]
[314810979,1708561856883,-540.52002048,0.00038356,2]
[314810980,1708561856893,-815.03,0.00038356,2]
[314810981,1708561856902,-500.0,0.00038356,2]
[314810982,1708561856912,-500.0,0.00038356,2]
[314810983,1708561856921,-500.0,0.00038356,2]
[314810984,1708561856931,-500.0,0.00038356,2]
[314810985,1708561856940,-500.0,0.00038356,2]
[314810986,1708561856950,-500.0,0.00038356,2]
[314810987,1708561856959,-500.0,0.00038356,2]
[314810988,1708561856968,-500.0,0.00038356,2]
[314810989,1708561856977,-500.0,0.00038356,2]
[314810990,1708561856987,-500.0,0.00038356,2]
[314810991,1708561856996,-500.0,0.00038356,2]
[314810992,1708561857006,-1694.97,0.00038356,2]
[314810993,1708561857016,-500.0,0.00038356,2]
[314810994,1708561857025,-500.0,0.00038356,2]
[314810995,1708561857034,-564.00722072,0.00038356,2]
[314810996,1708561857044,-500.0,0.00038356,2]
[314810997,1708561857053,-737.92,0.00038356,2]
[314810998,1708561857062,-500.0,0.00038356,2]
[314810999,1708561857071,-500.0,0.00038356,2]
[314811000,1708561857081,-703.07,0.00038356,2]
[314811001,1708561857090,-1356.29,0.00038356,2]
[314811002,1708561857099,-1048.53,0.00038356,2]
[314811003,1708561857108,-1938.34,0.00038356,2]
[314811004,1708561857118,-500.0,0.00038356,2]
[314811005,1708561857128,-500.0,0.00038356,2]
[314811006,1708561857138,-500.0,0.00038356,2]
[314811007,1708561857147,-500.0,0.00038356,2]
[314811008,1708561857156,-500.0,0.00038356,2]
[314811009,1708561857165,-500.0,0.00038356,2]
[314811010,1708561857174,-2018.93327036,0.00038356,2]
[314811011,1708561857184,-1176.81,0.00038356,2]
[314811012,1708561857193,-3398.69,0.00038356,2]
[314811013,1708561857202,-1376.46,0.00038356,2]
[314811014,1708561857211,-500.0,0.00038356,2]
[314811015,1708561857221,-500.0,0.00038356,2]
[314811016,1708561857231,-500.0,0.00038356,2]
[314811017,1708561857240,-500.0,0.00038356,7]
[314811018,1708561857250,-500.0,0.00038356,2]
[314811019,1708561857260,-1111.66656074,0.00038356,30]
[314811020,1708561857269,-500.0,0.00038356,2]
[314811021,1708561857279,-500.0,0.00038356,2]
[314811022,1708561857288,-502.89,0.00038356,2]
[314811023,1708561857298,-500.0,0.00038356,2]
[314811024,1708561857307,-500.0,0.00038356,2]
[314811025,1708561857318,-1560.12,0.00038356,2]
[314811026,1708561857327,-500.0,0.00038356,2]
[314811027,1708561857338,-500.0,0.00038356,2]
[314811028,1708561857348,-1239.7,0.00038356,2]
[314811029,1708561857357,-970.24,0.00038356,2]
[314811030,1708561857367,-500.0,0.00038356,2]
[314811031,1708561857376,-500.0,0.00038356,2]
[314811032,1708561857385,-500.0,0.00038356,2]
[314811033,1708561857394,-500.0,0.00038356,2]
[314811034,1708561857403,-500.0,0.00038356,2]
[314811035,1708561857413,-1082.11,0.00038356,2]
[314811036,1708561857422,-500.0,0.00038356,2]
[314811037,1708561857431,-2968.68,0.00038356,2]
[314811038,1708561857440,-6681.26,0.00038356,2]
[314811039,1708561857449,-926.08,0.00038356,2]
[314811040,1708561857459,-500.0,0.00038356,2]
[314811041,1708561857469,-500.0,0.00038356,2]
[314811042,1708561857478,-500.0,0.00038356,2]
[314811043,1708561857487,-500.0,0.00038356,2]
[314811044,1708561857496,-500.0,0.00038356,2]
[314811045,1708561857506,-747.69,0.00038356,2]
[314811046,1708561857515,-500.0,0.00038356,2]
[314811047,1708561857524,-713.03,0.00038356,2]
[314811048,1708561857534,-500.0,0.00038356,2]
[314811049,1708561857543,-886.18,0.00038356,2]
[314811050,1708561857553,-733.84,0.00038356,2]
[314811051,1708561857562,-725.2,0.00038356,2]
[314811052,1708561857571,-500.0,0.00038356,2]
[314811053,1708561857581,-500.0,0.00038356,2]
[314811054,1708561857590,-500.0,0.00038356,2]
[314811055,1708561857600,-446.40998101,0.00038356,2]
[314811056,1708561857609,-500.0,0.00038356,2]
[314811057,1708561857619,-724.25,0.00038356,2]
[314811058,1708561857630,-500.0,0.00038356,2]
[314811059,1708561857639,-3133.41,0.00038356,2]
[314811060,1708561857649,-500.0,0.00038356,2]
[314811061,1708561857658,-571.85082221,0.00038356,2]
[314811062,1708561857669,-2749.12,0.00038356,2]
[314811063,1708561857681,-4862.78,0.00038356,2]
[314811064,1708561857691,-500.0,0.00038356,2]
[314811065,1708561857700,-500.0,0.00038356,2]
[314811066,1708561857710,-500.0,0.00038356,2]
[314811067,1708561857719,-2122.86,0.00038356,2]
[314811068,1708561857728,-500.0,0.00038356,2]
[314811069,1708561857737,-3648.27,0.00038356,2]
[314811070,1708561857746,-500.0,0.00038356,2]
[314811071,1708561857755,-2260.88,0.00038356,2]
[314811072,1708561857764,-4835.79,0.00038356,2]
[314811073,1708561857773,-500.0,0.00038356,2]
[314811074,1708561857783,-500.0,0.00038356,2]
[314811075,1708561857793,-500.0,0.00038356,2]
[314811076,1708561857802,-500.0,0.00038356,2]
[314811077,1708561857811,-1666.03,0.00038356,2]
[314811078,1708561857821,-666.14,0.00038356,2]
[314811079,1708561857830,-505.68572893,0.00038356,2]
[314811080,1708561857840,-500.0,0.00038356,2]
[314811081,1708561857848,-500.0,0.00038356,2]
[314811082,1708561857858,-907.68,0.00038356,2]
[314811083,1708561857867,-773.48,0.00038356,2]
[314811084,1708561857875,-500.0,0.00038356,2]
[314811085,1708561857886,-774.25,0.00038356,2]
[314811086,1708561857895,-502.90722787,0.00038356,2]
[314811087,1708561857904,-500.0,0.00038356,2]
[314811088,1708561857914,-2539.42,0.00038356,2]
[314811089,1708561857923,-524.77498155,0.00038356,2]
[314811090,1708561857932,-500.0,0.00038356,2]
[314811091,1708561857941,-11376.53,0.00038356,2]
[314811092,1708561857950,-500.0,0.00038356,2]
[314811093,1708561857959,-500.0,0.00038356,2]
[314811094,1708561857968,-500.0,0.00038356,2]
[314811095,1708561857978,-500.0,0.00038356,2]
[314811096,1708561857988,-510.02987991,0.00038356,2]
[314811097,1708561857997,-45537.97,0.00038356,2]
[314811098,1708561858007,-1138.81,0.00038356,2]
[314811099,1708561858016,-4850.6,0.00038356,2]
[314811100,1708561858025,-500.0,0.00038356,2]
[314811101,1708561858035,-500.0,0.00038356,2]
[314811102,1708561858044,-926.69,0.00038356,2]
[314811103,1708561858053,-785.99,0.00038356,2]
[314811104,1708561858062,-500.0,0.00038356,2]
[314811105,1708561858071,-500.0,0.00038356,2]
[314811106,1708561858082,-500.0,0.00038356,2]
[314811107,1708561858090,-500.0,0.00038356,2]
[314811108,1708561858100,-8775.62,0.00038356,2]
[314811109,1708561858109,-500.0,0.00038356,2]
[314811110,1708561858118,-500.0,0.00038356,2]
[314811111,1708561858127,-500.0,0.00038356,2]
[314811112,1708561858137,-500.0,0.00038356,2]
[314811113,1708561858146,-500.0,0.00038356,2]
[314811114,1708561858155,-4819.77,0.00038356,2]
[314811115,1708561858165,-500.0,0.00038356,2]
[314811116,1708561858174,-5515.89,0.00038356,2]
[314811117,1708561858184,-500.0,0.00038356,2]
[314811118,1708561858193,-508.05412334,0.00038356,2]
[314811119,1708561858203,-1944.35,0.00038356,2]
[314811120,1708561858212,-500.0,0.00038356,2]
[314811121,1708561858222,-1365.35,0.00038356,2]
[314811122,1708561858231,-500.0,0.00038356,2]
[314811123,1708561858241,-14549.74,0.00038356,2]
[314811124,1708561858251,-500.0,0.00038356,2]
[314811125,1708561858261,-500.0,0.00038356,2]
[314811126,1708561858270,-500.0,0.00038356,2]
[314811127,1708561858279,-500.0,0.00038356,2]
[314811128,1708561858289,-500.0,0.00038356,2]
[314811129,1708561858298,-500.0,0.00038356,2]
[314811130,1708561858307,-15830.03,0.00038356,2]
[314811131,1708561858318,-517.14519196,0.00038356,2]
[314811132,1708561858327,-500.0,0.00038356,2]
[314811133,1708561858339,-500.0,0.00038356,2]
[314811134,1708561858350,-500.0,0.00038356,2]
[314811135,1708561858359,-500.0,0.00038356,2]
[314811136,1708561858369,-500.0,0.00038356,2]
[314811137,1708561858379,-2827.98,0.00038356,2]
[314811138,1708561858389,-1929.82,0.00038356,2]
[314811139,1708561858399,-500.0,0.00038356,2]
[314811140,1708561858408,-500.0,0.00038356,2]
[314811141,1708561858419,-500.0,0.00038356,2]
[314811142,1708561858429,-500.0,0.00038356,2]
[314811143,1708561858438,-1232.39,0.00038356,2]
[314811144,1708561858448,-776.02,0.00038356,2]
[314811145,1708561858457,-500.0,0.00038356,2]
[314811146,1708561858467,-740.77,0.00038356,2]
[314811147,1708561858476,-500.0,0.00038356,2]
[314811148,1708561858485,-11438.4,0.00038356,2]
[314811149,1708561858494,-500.0,0.00038356,2]
[314811150,1708561858504,-3591.36,0.00038356,2]
[314811151,1708561858513,-500.0,0.00038356,2]
[314811152,1708561858522,-500.0,0.00038356,2]
[314811153,1708561858531,-500.0,0.00038356,2]
[314811154,1708561858541,-500.0,0.00038356,2]
[314811155,1708561858550,-402.00798907,0.00038356,2]
[314811156,1708561858559,-500.0,0.00038356,2]
[314811157,1708561858569,-2441.61,0.00038356,2]
[314811158,1708561858579,-500.0,0.00038356,2]
[314811159,1708561858590,-500.0,0.00038356,2]
[314811160,1708561858599,-500.0,0.00038356,2]
[314811161,1708561858609,-835.55,0.00038356,2]
[314811162,1708561858618,-502.076059,0.00038356,2]
[314811163,1708561858627,-633.47,0.00038356,2]
[314811164,1708561858637,-555.18,0.00038356,2]
[314811165,1708561858646,-500.0,0.00038356,2]
[314811166,1708561858655,-520.83,0.00038356,2]
[314811167,1708561858664,-500.0,0.00038356,2]
[314811168,1708561858675,-500.0,0.00038356,2]
[314811169,1708561858684,-861.16,0.00038356,2]
[314811170,1708561858698,-500.0,0.00038356,2]
[314811171,1708561858707,-500.0,0.00038356,2]
[314811172,1708561858718,-500.0,0.00038356,2]
[314811173,1708561858727,-629.11469073,0.00038356,2]
[314811174,1708561858737,-500.0,0.00038356,2]
[314811175,1708561858746,-500.0,0.00038356,2]
[314811176,1708561858756,-500.0,0.00038356,2]
[314811177,1708561858766,-1209.59,0.00038356,2]
[314811178,1708561858775,-166.92873117,0.00038356,2]
[314811179,1708561858785,-1363.3,0.00038356,2]
[314811180,1708561858794,-500.0,0.00038356,2]
[314811181,1708561858803,-765.03,0.00038356,2]
[314811182,1708561858812,-1132.93,0.00038356,2]
[314811183,1708561858821,-500.0,0.00038356,2]
[314811184,1708561858831,-7925.83,0.00038356,2]
[314811185,1708561858840,-4048.41061808,0.00038356,2]
[314811186,1708561859771,-11583.03938192,0.00038356,2]
[314811187,1708561859781,-500.0,0.00038356,2]
[314811188,1708561859790,-500.0,0.00038356,2]
[314811189,1708561859800,-1792.57,0.00038356,2]
[314811190,1708561859809,-227.69,0.00038356,2]
[314811191,1708561859818,-500.0,0.00038356,2]
[314811192,1708561859827,-500.0,0.00038356,2]
[314811193,1708561859838,-748.56,0.00038356,2]
[314811194,1708561859847,-500.0,0.00038356,2]
[314811195,1708561859856,-748.56,0.00038356,2]
[314811196,1708561859865,-748.56,0.00038356,2]
[314811197,1708561859874,-748.56,0.00038356,2]
[314811198,1708561859883,-500.0,0.00038356,2]
[314811199,1708561859893,-500.0,0.00038356,2]
[314811200,1708561859902,-512.51373194,0.00038356,2]
[314811201,1708561859911,-748.56,0.00038356,2]
[314811202,1708561859921,-500.0,0.00038356,2]
[314811203,1708561859930,-748.56,0.00038356,2]
[314811204,1708561859939,-1075.3,0.00038356,2]
[314811205,1708561859948,-9738.23,0.00038356,2]
[314811206,1708561859957,-748.56,0.00038356,2]
[314811207,1708561859966,-748.56,0.00038356,2]
[314811208,1708561859975,-500.0,0.00038356,2]
[314811209,1708561859984,-748.56,0.00038356,2]
[314811210,1708561859994,-500.0,0.00038356,2]
[314811211,1708561860003,-500.0,0.00038356,2]
[314811212,1708561860013,-500.0,0.00038356,2]
[314811213,1708561860022,-791.2,0.00038356,2]
[314811214,1708561860031,-1484.91,0.00038356,2]
[314811215,1708561860041,-748.56,0.00038356,2]
[314811216,1708561860051,-748.56,0.00038356,2]
[314811217,1708561860061,-748.56,0.00038356,2]
[314811218,1708561860071,-500.0,0.00038356,2]
[314811219,1708561860081,-748.56,0.00038356,2]
[314811220,1708561860091,-748.56,0.00038356,2]
[314811221,1708561860100,-500.0,0.00038356,2]
[314811222,1708561860109,-500.0,0.00038356,2]
[314811223,1708561860118,-748.56,0.00038356,2]
[314811224,1708561860128,-500.0,0.00038356,2]
[314811225,1708561860138,-748.56,0.00038356,2]
[314811226,1708561860147,-748.56,0.00038356,2]
[314811227,1708561860156,-748.56,0.00038356,2]
[314811228,1708561860166,-500.0,0.00038356,2]
[314811229,1708561860174,-748.56,0.00038356,2]
[314811230,1708561860184,-748.56,0.00038356,2]
[314811231,1708561860193,-748.56,0.00038356,2]
[314811232,1708561860203,-748.56,0.00038356,2]
[314811233,1708561860213,-500.0,0.00038356,2]
[314811234,1708561860223,-748.56,0.00038356,2]
[314811235,1708561860233,-748.79175822,0.00038356,2]
[314811236,1708561860242,-500.0,0.00038356,2]
[314811237,1708561860252,-500.0,0.00038356,2]
[314811238,1708561860261,-500.0,0.00038356,2]
[314811239,1708561860271,-10639.18,0.00038356,2]
[314811240,1708561860282,-500.0,0.00038356,2]
[314811241,1708561860291,-500.0,0.00038356,2]
[314811242,1708561860301,-2292.1,0.00038356,2]
[314811243,1708561860310,-281.05299361,0.00038356,2]
[314811244,1708561860320,-711.9,0.00038356,2]
[314811245,1708561860329,-500.0,0.00038356,2]
[314811246,1708561860339,-2679.52,0.00038356,2]
[314811247,1708561860349,-1113.13,0.00038356,2]
[314811248,1708561860358,-644.63,0.00038356,2]
[314811249,1708561860367,-500.0,0.00038356,2]
[314811250,1708561860376,-500.0,0.00038356,2]
[314811251,1708561860385,-3217.48,0.00038356,2]
[314811252,1708561860394,-618.49,0.00038356,2]
[314811253,1708561860404,-500.0,0.00038356,2]
[314811254,1708561860413,-500.0,0.00038356,2]
[314811255,1708561860422,-500.0,0.00038356,2]
[314811256,1708561860432,-500.0,0.00038356,2]
[314811257,1708561860442,-723.71,0.00038356,2]
[314811258,1708561860451,-4473.06,0.00038356,2]
[314811259,1708561860460,-500.0,0.00038356,2]
[314811260,1708561860470,-500.0,0.00038356,2]
[314811261,1708561860479,-7521.31,0.00038356,2]
[314811262,1708561860489,-500.0,0.00038356,2]
[314811263,1708561860497,-500.0,0.00038356,2]
[314811264,1708561860507,-500.0,0.00038356,2]
[314811265,1708561860516,-1677.71,0.00038356,2]
[314811266,1708561860528,-925.76,0.00038356,2]
[314811267,1708561860538,-500.0,0.00038356,2]
[314811268,1708561860548,-1756.05,0.00038356,2]
[314811269,1708561860557,-500.0,0.00038356,2]
[314811270,1708561860566,-513.11372809,0.00038356,2]
[314811271,1708561860575,-923.79,0.00038356,2]
[314811272,1708561860587,-500.0,0.00038356,2]
[314811273,1708561860597,-627.63,0.00038356,2]
[314811274,1708561860605,-4317.48,0.00038356,2]
[314811275,1708561860614,-500.0,0.00038356,2]
[314811276,1708561860623,-500.0,0.00038356,2]
[314811277,1708561860632,-500.0,0.00038356,2]
[314811278,1708561860642,-2016.42,0.00038356,2]
[314811279,1708561860650,-546.24815765,0.00038356,2]
[314811280,1708561860659,-500.0,0.00038356,2]
[314811281,1708561860669,-508.03576897,0.00038356,2]
[314811282,1708561860678,-500.0,0.00038356,2]
[314811283,1708561860687,-1754.54,0.00038356,2]
[314811284,1708561860697,-530.77260637,0.00038356,2]
[314811285,1708561860706,-500.0,0.00038356,2]
[314811286,1708561860716,-1430.45,0.00038356,2]
[314811287,1708561860725,-1670.79,0.00038356,2]
[314811288,1708561860734,-500.0,0.00038356,2]
[314811289,1708561860743,-568.28763755,0.00038356,2]
[314811290,1708561860752,-1000.0,0.00038356,7]
[314811291,1708561860762,-958.33,0.00038356,2]
[314811292,1708561860771,-500.0,0.00038356,2]
[314811293,1708561860781,-500.0,0.00038356,2]
[314811294,1708561860790,-500.0,0.00038356,2]
[314811295,1708561860799,-1069.5,0.00038356,2]
[314811296,1708561860808,-292.82719214,0.00038356,2]
[314811297,1708561860818,-500.0,0.00038356,2]
[314811298,1708561860827,-500.0,0.00038356,2]
[314811299,1708561860837,-2010.83,0.00038356,2]
[314811300,1708561860846,-500.0,0.00038356,2]
[314811301,1708561860857,-500.0,0.00038356,2]
[314811302,1708561860867,-2720.28,0.00038356,2]
[314811303,1708561860876,-500.0,0.00038356,2]
[314811304,1708561860886,-21275.97,0.00038356,2]
[314811305,1708561860895,-778.05,0.00038356,2]
[314811306,1708561860904,-500.0,0.00038356,2]
[314811307,1708561860915,-220.93531959,0.00038356,2]
[314811308,1708561860925,-500.0,0.00038356,2]
[314811309,1708561860935,-2452.88,0.00038356,2]
[314811310,1708561860945,-500.0,0.00038356,2]
[314811311,1708561860954,-500.0,0.00038356,2]
[314811312,1708561860965,-500.0,0.00038356,2]
[314811313,1708561860975,-1403.21,0.00038356,2]
[314811314,1708561860985,-500.0,0.00038356,2]
[314811315,1708561860994,-500.0,0.00038356,2]
[314811316,1708561861003,-500.0,0.00038356,2]
[314811317,1708561861013,-2440.27,0.00038356,2]
[314811318,1708561861022,-500.0,0.00038356,2]
[314811319,1708561861032,-500.0,0.00038356,2]
[314811320,1708561861042,-732.48,0.00038356,2]
[314811321,1708561861052,-516.33,0.00038356,2]
[314811322,1708561861061,-509.08,0.00038356,2]
[314811323,1708561861071,-500.0,0.00038356,2]
[314811324,1708561861080,-500.0,0.00038356,2]
[314811325,1708561861090,-500.0,0.00038356,2]
[314811326,1708561861100,-500.0,0.00038356,2]
[314811327,1708561861109,-500.0,0.00038356,2]
[314811328,1708561861118,-1114.03,0.00038356,2]
[314811329,1708561861128,-500.0,0.00038356,2]
[314811330,1708561861138,-500.0,0.00038356,2]
[314811331,1708561861147,-1646.23,0.00038356,2]
[314811332,1708561861156,-13305.42,0.00038356,2]
[314811333,1708561861166,-3173.7,0.00038356,2]
[314811334,1708561861175,-500.0,0.00038356,2]
[314811335,1708561861184,-500.0,0.00038356,2]
[314811336,1708561861194,-574.04,0.00038356,2]
[314811337,1708561861203,-500.0,0.00038356,2]
[314811338,1708561861212,-500.0,0.00038356,2]
[314811339,1708561861222,-500.0,0.00038356,2]
[314811340,1708561861232,-1619.53,0.00038356,2]
[314811341,1708561861241,-1511.79,0.00038356,2]
[314811342,1708561861251,-1197.75,0.00038356,2]
[314811343,1708561861260,-1524.93,0.00038356,2]
[314811344,1708561861269,-500.0,0.00038356,2]
[314811345,1708561861278,-500.0,0.00038356,2]
[314811346,1708561861287,-500.0,0.00038356,2]
[314811347,1708561861297,-4495.17,0.00038356,2]
[314811348,1708561861308,-500.0,0.00038356,2]
[314811349,1708561861318,-500.0,0.00038356,2]
[314811350,1708561861328,-500.0,0.00038356,2]
[314811351,1708561861338,-500.0,0.00038356,2]
[314811352,1708561861348,-969.66,0.00038356,2]
[314811353,1708561861358,-500.0,0.00038356,2]
[314811354,1708561861367,-9087.09,0.00038356,2]
[314811355,1708561861377,-500.0,0.00038356,2]
[314811356,1708561861387,-500.0,0.00038356,2]
[314811357,1708561861397,-881.52,0.00038356,2]
[314811358,1708561861406,-1459.54,0.00038356,2]
[314811359,1708561861416,-2054.45,0.00038356,2]
[314811360,1708561861426,-500.0,0.00038356,2]
[314811361,1708561861435,-5488.57,0.00038356,2]
[314811362,1708561861445,-1739.19,0.00038356,2]
[314811363,1708561861455,-500.0,0.00038356,2]
[314811364,1708561861464,-500.0,0.00038356,2]
[314811365,1708561861473,-914.78,0.00038356,2]
[314811366,1708561861483,-500.0,0.00038356,2]
[314811367,1708561861493,-501.75608529,0.00038356,2]
[314811368,1708561861502,-500.0,0.00038356,2]
[314811369,1708561861511,-500.0,0.00038356,2]
[314811370,1708561861520,-2483.88,0.00038356,2]
[314811371,1708561861530,-500.0,0.00038356,2]
[314811372,1708561861539,-500.0,0.00038356,2]
[314811373,1708561861549,-2907.79,0.00038356,2]
[314811374,1708561861558,-500.0,0.00038356,2]
[314811375,1708561861568,-500.0,0.00038356,2]
[314811376,1708561861578,-640.65,0.00038356,2]
[314811377,1708561861588,-500.0,0.00038356,2]
[314811378,1708561861597,-1313.65,0.00038356,2]
[314811379,1708561861606,-500.0,0.00038356,2]
[314811380,1708561861616,-500.0,0.00038356,2]
[314811381,1708561861625,-664.31,0.00038356,2]
[314811382,1708561861635,-1187.09,0.00038356,2]
[314811383,1708561861644,-500.0,0.00038356,2]
[314811384,1708561861653,-500.0,0.00038356,2]
[314811385,1708561861663,-500.0,0.00038356,2]
[314811386,1708561861672,-500.0,0.00038356,2]
[314811387,1708561861681,-1831.1,0.00038356,2]
[314811388,1708561861691,-3499.72,0.00038356,2]
[314811389,1708561861702,-500.0,0.00038356,2]
[314811390,1708561861711,-500.0,0.00038356,2]
[314811391,1708561861720,-3819.31,0.00038356,2]
[314811392,1708561861729,-286.56467995,0.00038356,2]
[314811393,1708561861747,-1376.22010586,0.00038356,2]
[314811394,1708561861873,-8.12521419,0.00038356,2]
[314811395,1708561861883,-275.06578581,0.00038356,2]
[314811396,1708561861920,-381.18278025,0.00038,2]
[314811397,1708561864217,-288.17391404,0.00030099,2]
[314811398,1708561864232,-305.26278596,0.00030099,2]
[314811399,1708561864242,-152.912,0.00036742,2]
[314811400,1708561864251,-223.055,0.00036742,2]
[314811401,1708561864260,-858.0,0.00036742,2]
[314811402,1708561864269,-429.0,0.00036742,2]
[314811403,1708561864278,-366.53,0.00037538,10]